Workbook

Sheet EtOH Summary
C1: Summary of the Tier 1 Starch and Fiber Ethanol Pathway(s) Release Date: August 13, 2018
C3: Applicant: | D3: =IF(EtOH!D21="","",EtOH!D21) -> ABCDEFG Ethanol | G3: =CONCATENATE("Location: ",EtOH!D24) -> Location: HIJKLMN City, IA
C4: Application Number | D4: =IF(EtOH!H21="","",EtOH!H21) -> A0123
C5: Description: | D5: =IF(EtOH!G24="","",EtOH!G24) -> Midwest Corn ethanol
C7: Feedstock Production Electricity Mix | E7: 1- U.S Ave Mix | G7: Fuel Production Electricity Mix | H7: =EtOH!BM29 -> 3-CAMX Mix
C8: Feedstock Production | G8: Fuel Production | J8: Different Scenarios of Starch Ethanol Production | L8: Carbon Intensity (gCO2e/MJ) | M8: Conservative Margin of Safety (gCO2e/MJ) | N8: Total Carbon Intensity (gCO2e/MJ) | O8: Correspondent Volumes (denatured gallons)
C9: Feedstock Production | D9: Column2 | E9: Column1 | G9: Fuel Production | H9: Column1 | J9: Different Scenarios of Ethanol Production | K9: Column1 | L9: Carbon Intensity, g/MJ | M9: Column3 | N9: Column2 | O9: Correspondent Volumes, gallons
C10: Corn Use, bushels | E10: =EtOH!D57 -> 79775294 | G10: Total Undenatured Ethanol, gallons | H10: =EtOH!AX57 -> 218694177 | K10: Dry DG | L10: =EtOH!D12 -> 73.85999367 | M10: 0 | N10: =Table13[[#This Row],[Carbon Intensity, g/MJ]]+Table13[[#This Row],[Column3]] -> 73.85999367 | O10: =EtOH!AG75 -> 23759667.38
C11: Sorghum Use, bushels | E11: =EtOH!L57 -> 0 | G11: Total Undenatured Starch Ethanol, gallons | H11: =EtOH!AE69+EtOH!AE70 -> 215514643.6 | J11: Corn Ethanol | K11: Modified DG | L11: =EtOH!D14 -> 0 | M11: 0 | N11: =Table13[[#This Row],[Carbon Intensity, g/MJ]]+Table13[[#This Row],[Column3]] -> 0 | O11: =EtOH!AG76 -> 0
C12: Ethanol Yield, gal/bushels | E12: =EtOH!E80 -> 2.741377261 | G12: Total Undenatured Fiber Ethanol, gallons | H12: =EtOH!BE57 -> 3179533.359 | K12: Wet DG | L12: =EtOH!D16 -> 64.07244266 | M12: 0 | N12: =Table13[[#This Row],[Carbon Intensity, g/MJ]]+Table13[[#This Row],[Column3]] -> 64.07244266 | O12: =EtOH!AG77 -> 195669027.4
C14: Feedstock Transport (Weighted Average) | G14: Energy Consumption | K14: Dry DG | L14: =EtOH!G12 -> 0 | M14: 0 | N14: =Table13[[#This Row],[Carbon Intensity, g/MJ]]+Table13[[#This Row],[Column3]] -> 0 | O14: =EtOH!AJ75 -> 0
C15: Corn Transport by HD Truck, miles | E15: =EtOH!H57 -> 33.31352675 | G15: Natural, HHV in MMBtu | H15: =EtOH!BG57 -> 4468320 | J15: Sorghum Ethanol | K15: Modified DG | L15: =EtOH!G14 -> 0 | M15: 0 | N15: =Table13[[#This Row],[Carbon Intensity, g/MJ]]+Table13[[#This Row],[Column3]] -> 0 | O15: =EtOH!AJ76 -> 0
C16: Corn Transport by Rail, miles | E16: =EtOH!J57 -> 0 | G16: Biogas, HHV in MMBtu | H16: =EtOH!BH57 -> 0 | K16: Wet DG | L16: =EtOH!G16 -> 0 | M16: 0 | N16: =Table13[[#This Row],[Carbon Intensity, g/MJ]]+Table13[[#This Row],[Column3]] -> 0 | O16: =EtOH!AJ77 -> 0
G17: Biomass, Tons | H17: =EtOH!BI57 -> 0
C18: Sorghum Transport by HD Truck, miles | E18: =EtOH!P57 -> 0 | G18: Electricity, kWh | H18: =EtOH!BL57 -> 116572914 | J18: Corn/Sorghum Fiber Ethanol | L18: =EtOH!J10 -> 24.20061442 | M18: 0 | N18: =Table13[[#This Row],[Carbon Intensity, g/MJ]]+Table13[[#This Row],[Column3]] -> 24.20061442 | O18: =EtOH!AG78 -> 3237278.188
C19: Sorghum Transport by Rail, miles | E19: =EtOH!R57 -> 0 | G19: Other Electricity, kWh | H19: =EtOH!BM57 -> 0
J20: Corn Ethanol | K20: Composite | L20: =IFERROR((L10*O10+L11*O11+L12*O12)/O20,0) -> 65.13223549 | M20: 0 | N20: =Table13[[#This Row],[Carbon Intensity, g/MJ]]+Table13[[#This Row],[Column3]] -> 65.13223549 | O20: =EtOH!AE75 -> 219428694.8
C21: Co-Product Yield, bone-dry lb./gal | E21: =EtOH!AS57 -> 5.093487586 | G21: Chemical Usage for Cellulosic | J21: Sorghum Ethanol | K21: Composite | L21: =IFERROR((L14*O14+L15*O15+L16*O16)/O21,0) -> 0 | M21: 0 | N21: =Table13[[#This Row],[Carbon Intensity, g/MJ]]+Table13[[#This Row],[Column3]] -> 0 | O21: =EtOH!AE76 -> 0
C22: Dry Distiller Grains, tons | E22: =EtOH!T57 -> 66653 | G22: Cellulosic Enzyme, lbs. | H22: =EtOH!BB57 -> 0
C23: Moisture, % | E23: =EtOH!W57 -> 0.1262875489
C24: Drying Energy, HHV in MMBtu | E24: =EtOH!X57 -> 287991 | G24: Fuel Transport
C25: Modified Distiller Grains, tons | E25: =EtOH!Z57 -> 0 | G25: By HD Truck, miles | H25: =EtOH!BO35 -> 53
C26: Moisture, % | E26: =EtOH!AC57 -> 0 | G26: By Rail, miles | H26: =EtOH!BO33 -> 2056
C27: Drying Energy, HHV in MMBtu | E27: =EtOH!AD57 -> 0
C28: Wet Distiller Grains, tons | E28: =EtOH!AF57 -> 1347074 | G28: Denaturant Usage | H28: =IFERROR(EtOH!AY57/EtOH!AU57,0) -> 0.0241747349
C29: Moisture, % | E29: =EtOH!AI57 -> 0.6439766338 | G29: Denaturant, gallons | H29: =EtOH!AY57 -> 3971796
C30: Syrup DGS, tons | E30: =EtOH!AK57 -> 0
C31: Moisture, % | E31: =EtOH!AN57 -> 0
C32: Corn Oil, tons | E32: =EtOH!AP57/2000 -> 19325.921

Sheet EtOH
C7: LCFS Tier 1 Simplified CI Calculator for Starch and Fiber Ethanol
B9: Pathway Summary and Estimated CI (g/MJ) | L9: Yellow Cells require user input
B10: Corn Ethanol Composite CI, g/MJ | D10: =IFERROR((D12*D13+D14*D15+D16*D17)/AE75,0) -> 65.13223549 | E10: Sorghum Ethanol (Composite CI), g/MJ | G10: =IFERROR((G12*G13+G14*G15+G16*G17)/AE76,0) -> 0 | H10: Corn/Sorghum Fiber Ethanol CI, g/MJ | J10: =IF(BE57=0,0,(H89+H93+H97+H103+H105+H107+H109+H99+H101)*'EF Tables'!D77+(H111+H112+H113)) -> 24.20061442 | L10: Light Blue Cells show CI results
B11: Denatured Volume, gal | D11: =AE75 -> 219428694.8 | E11: Denatured Volume, gal | G11: =AE76 -> 0 | H11: Denatured Ethanol Volume, gal | J11: =AE78 -> 3237278.188 | L11: Green Cells show the calculation button
B12: Corn Ethanol (Dry DGS) CI, g/MJ | D12: =IF(OR(D57=0,T57=0),0,(E82+E84+E86+E93+E95+E97+E103+E105+E107+E109+E99+E101)*'EF Tables'!D77+(E111+E112+E113)) -> 73.85999367 | E12: Sorghum Ethanol (Dry DGS) CI, g/MJ | G12: =IF(OR(T57=0,L57=0),0,(I82+I84+I86+I93+I95+I97+I103+I105+I107+I109+I99+I101)*'EF Tables'!D77+(I111+I112+I113)) -> 0 | L12: Gray Cells are Calculated Values
B13: Denatured Volume, gal | D13: =AG75 -> 23759667.38 | E13: Denatured Volume, gal | G13: =AJ75 -> 0
B14: Corn Ethanol (Modified DGS) CI, g/MJ | D14: =IF(OR(D57=0,Z57=0),0,(F82+F84+F86+F93+F95+F97+F103+F105+F107+F109+F99+F101)*'EF Tables'!D77+(F111+F112+F113)) -> 0 | E14: Sorghum Ethanol (Modified DGS) CI, g/MJ | G14: =IF(OR(Z57=0,L57=0),0,(J82+J84+J86+J93+J95+J97+J103+J105+J107+J109+J99+J101)*'EF Tables'!D77+(J111+J112+J113)) -> 0
B15: Denatured Volume, gal | D15: =AG76 -> 0 | E15: Denatured Volume, gal | G15: =AJ76 -> 0
B16: Corn Ethanol (Wet DGS) CI, g/MJ | D16: =IF(OR(D57=0,AF57=0), 0,(G82+G84+G86+G93+G95+G97+G103+G105+G107+G109+G99+G101)*'EF Tables'!D77+(G111+G112+G113)) -> 64.07244266 | E16: Sorghum Ethanol (Wet DGS) CI, g/MJ | G16: =IF(OR(AF57=0,L57=0),0,(K82+K84+K86+K93+K95+K97+K103+K105+K107+K109+K99+K101)*'EF Tables'!D77+(K111+K112+K113)) -> 0
B17: Denatured Volume, gal | D17: =AG77 -> 195669027.4 | E17: Denatured Volume, gal | G17: =AJ77 -> 0
B20: Section 1. Applicant Information
B21: 1.1. Company Name | D21: ABCDEFG Ethanol | G21: 1.2. Application Number | H21: A0123
B22: 1.3. Company ID | D22: 1234
B23: 1.4. Facility ID | D23: 1234
B24: 1.5. Ethanol Production Location (City, State) | D24: HIJKLMN City, IA | F24: 1.6. Application Description | G24: Midwest Corn ethanol
B25: 1.7. Electricity Mix Region for Feedstock | D25: 1-U.S Ave Mix
B26: 1.8. Provisional Pathway? | D26: No
B28: Section 2. Feedstock Production Data for Starch Ethanol Production | BG28: Section 3. Fuel Production Energy Consumption and Fuel Transport Data
B29: Corn as Feedstock | G29: Corn Transport | K29: Sorghum as Feedstock | O29: Sorghum Transport | S29: Co-Product Production | AT29: Fuel Production | BG29: 3.1. Electricity Mix Region for Fuel | BM29: 3-CAMX Mix | BN29: =IF(BM29="2-User Defined Mix","3.10. Enter Electricity Generation GHG Emission Factor (gCO2e/kWh)","") -> 
B30: Corn Inventory | G30: 2.6. Corn Transport Data Category | I30: Conditional Default for Ethanol Plants in CA | K30: Sorghum Inventory | O30: 2.12. Sorghum Transport Data Category | Q30: User-Defined for Sorghum Transport | S30: Dry Distiller Grains | Y30: Modified Distiller Grains | AE30: Wet Distiller Grains | AJ30: Syrup | AO30: Corn/Sorghum Oil | AT30: Starch Ethanol Production | AY30: 2.46. Denaturant Data Category | AZ30: Cellulosic Ethanol Production | BG30: Energy Consumption | BN30: Fuel Transport and Distribution
B31: 2.1. Reporting Month (MM/YYYY) | C31: 2.2. Beginning Corn Inventory | D31: 2.3. Corn Used (Calculated) | E31: 2.4. Corn Received | F31: 2.5. Ending Corn Inventory | G31: 2.7. Corn Transport from Collection Center to Ethanol Plant (Monthly weighted average) | K31: 2.8. Beginning Sorghum Inventory | L31: 2.9. Sorghum Used (Calculated) | M31: 2.10. Sorghum Received | N31: 2.11. Ending Sorghum Inventory | O31: 2.13. Sorghum Transport from Collection Center to Ethanol Plant (Monthly weighted average) | S31: 2.14. Dry DG Beginning Inventory | T31: 2.15. Dry Distiller Grains Produced | U31: 2.16. Dry Distiller Grains Sales | V31: 2.17. Dry DG Ending Inventory | W31: 2.18. Moisture Content (Monthly weighted average) | X31: 2.19. Drying Energy (metered) | Y31: 2.20. Modified DG Beginning Inventory | Z31: 2.21. Modified Distiller Grains Produced | AA31: 2.22. Modified Distiller Grains Sales | AB31: 2.23. Modified DG Ending Inventory | AC31: 2.24. Moisture Content (Monthly weighted average) | AD31: 2.25. Drying Energy (metered) | AE31: 2.26. Wet DG Beginning Inventory | AF31: 2.27. Wet Distiller Grains Produced | AG31: 2.28. Wet Distiller Grains Sales | AH31: 2.29. Wet DG Ending Inventory | AI31: 2.30. Moisture Content (Monthly weighted average) | AJ31: 2.31. Syrup Beginning Inventory | AK31: 2.32. Syrup Produced | AL31: 2.33. Syrup Sales | AM31: 2.34. Syrup Ending Inventory | AN31: 2.35. Moisture Content (Monthly weighted average) | AO31: 2.36. Beginning Oil Inventory | AP31: 2.37. Oil Produced | AQ31: 2.38. Oil Sales | AR31: 2.39. Ending Oil Inventory | AS31: 2.40. Co-product Yield | AT31: 2.41. Beginning Undenatured Ethanol | AU31: 2.42. Denatured Ethanol Sales | AV31: 2.43. Undenatured Ethanol Sales | AW31: 2.44. Ending Undenatured Ethanol | AX31: 2.45. Undenatured Ethanol Produced | AY31: User-Defined Denaturant | AZ31: 2.47. Beginning Cellulosic Enzyme | BA31: 2.48. Cellulosic Enzyme Purchase | BB31: 2.49. Cellulosic Enzyme Use | BC31: 2.50. Ending Cellulosic Enzyme | BD31: 2.51. Corn/Sorghum Fiber Allocation | BE31: 2.52. Undenatured Corn/Sorghum Fiber Ethanol | BG31: 3.2. NG Use | BH31: 3.3. Biogas Use | BI31: 3.4. Biomass Use | BJ31: 3.5. Biomass Moisture | BK31: 3.6. Biomass Transport | BL31: 3.7. Electricity Use from grid | BM31: 3.8. Electricity from Co-located Solar or Wind | BN31: 3.9. Finished Fuel Transport
C32: Bushels | D32: Bushels | E32: Bushels | F32: Bushels | G32: 2.7.a Corn Transported by HDDT (bushels) | H32: 2.7.b HDDT Mileage, miles | I32: 2.7.c Corn Transported by Rail (bushels) | J32: 2.7.d Rail Mileage, miles | K32: Bushels | L32: Bushels | M32: Bushels | N32: Bushels | O32: 2.13.a Sorghum Transported by HDDT (bushels) | P32: 2.13.b HDDT Mileage, miles | Q32: 2.13.c Sorghum Transported by Rail (bushels) | R32: 2.13.d Rail Mileage, miles | S32: Tons | T32: Tons | U32: Tons | V32: Tons | W32: % | X32: mmBTU, HHV | Y32: Tons | Z32: Tons | AA32: Tons | AB32: Tons | AC32: % | AD32: mmBTU, HHV | AE32: Tons | AF32: Tons | AG32: Tons | AH32: Tons | AI32: % | AJ32: Tons | AK32: Tons | AL32: Tons | AM32: Tons | AN32: % | AO32: lbs. | AP32: lbs. | AQ32: lbs. | AR32: lbs. | AS32: Dry matter lbs./gal EtOH | AT32: Gallons @ 60o F | AU32: Gallons @ 60o F | AV32: Gallons @ 60o F | AW32: Gallons @ 60o F | AX32: Gallons @ 60o F | AY32: Gallons @ 60o F | AZ32: lbs. | BA32: lbs. | BB32: lbs. | BC32: lbs. | BD32: % | BE32: Gallons @ 60o F | BG32: mmBTU (HHV) | BH32: mmBTU, HHV | BI32: Tons | BJ32: % | BK32: Miles | BL32: kWh | BM32: kWh | BN32: Mode | BO32: Miles
B33: 2017-05-01 | C33: 3545450 | D33: =C33+E33-F33 -> 1998327 | E33: 1604333 | F33: 3151456 | G33: 1604333 | H33: 30 | L33: =K33+M33-N33 -> 0 | S33: 126 | T33: =V33-S33+U33 -> 3045 | U33: 1533 | V33: 1638 | W33: 0.129 | X33: 13162 | Z33: =AB33-Y33+AA33 -> 0 | AE33: 1638 | AF33: =AH33-AE33+AG33 -> 58904 | AG33: 59408 | AH33: 1134 | AI33: 0.66 | AK33: =AM33-AJ33+AL33 -> 0 | AO33: 139034 | AP33: =AR33-AO33+AQ33 -> 1763296 | AQ33: 1778200 | AR33: 124130 | AS33: =IFERROR((((T33*(1-W33)+Z33*(1-AC33)+AF33*(1-AI33)+AK33*(1-AN33))*2000)+AP33*(1-0.01))/AX33,0) -> 5.079480755 | AT33: 1115397 | AU33: 6551405 | AV33: 2850593 | AW33: 1152766 | AX33: =AW33-AT33+AU33+AV33-AY33 -> 9273541 | AY33: 165826 | BB33: =AZ33-BC33+BA33 -> 0 | BE33: =IFERROR(BD33*(AX33),0) -> 0 | BG33: ='NG and Imported Steam'!E4 -> 177993 | BL33: 4717421 | BN33: 3.9.a. By Rail | BO33: 2056
B34: 2017-06-01 | C34: 3151456 | D34: =C34+E34-F34 -> 1894171 | E34: 1812129 | F34: 3069414 | G34: 1812129 | H34: 30 | L34: =K34+M34-N34 -> 0 | S34: 1638 | T34: =V34-S34+U34 -> 2604 | U34: 2352 | V34: 1890 | W34: 0.136 | X34: 10949 | Z34: =AB34-Y34+AA34 -> 0 | AE34: 1134 | AF34: =AH34-AE34+AG34 -> 54845 | AG34: 55097 | AH34: 882 | AI34: 0.65 | AK34: =AM34-AJ34+AL34 -> 0 | AO34: 124130 | AP34: =AR34-AO34+AQ34 -> 1178640 | AQ34: 1147500 | AR34: 155270 | AS34: =IFERROR((((T34*(1-W34)+Z34*(1-AC34)+AF34*(1-AI34)+AK34*(1-AN34))*2000)+AP34*(1-0.01))/AX34,0) -> 9.45968071 | AT34: 1152766 | AU34: 5097145 | AV34: 0 | AW34: 928299 | AX34: =AW34-AT34+AU34+AV34-AY34 -> 4657458 | AY34: 215220 | BB34: =AZ34-BC34+BA34 -> 0 | BD34: 0.0221 | BE34: =IFERROR(BD34*(AX34),0) -> 102929.8218 | BG34: ='NG and Imported Steam'!E5 -> 177879 | BL34: 5156131
B35: 2017-07-01 | C35: 3069414 | D35: 3772665 | E35: 3998121 | F35: 3294870 | G35: 3998121 | H35: 30 | L35: =K35+M35-N35 -> 0 | S35: 1890 | T35: =V35-S35+U35 -> 743 | U35: 2507 | V35: 126 | W35: 0.08 | X35: 550 | Z35: =AB35-Y35+AA35 -> 0 | AE35: 882 | AF35: 62367 | AG35: 62367 | AH35: 882 | AI35: 0.66 | AK35: =AM35-AJ35+AL35 -> 0 | AO35: 155270 | AP35: 1331733 | AQ35: 1436180 | AR35: 50823 | AS35: =IFERROR((((T35*(1-W35)+Z35*(1-AC35)+AF35*(1-AI35)+AK35*(1-AN35))*2000)+AP35*(1-0.01))/AX35,0) -> 3.326127097 | AT35: 928299 | AU35: 8104074 | AV35: 5810580 | AW35: 653623 | AX35: =AW35-AT35+AU35+AV35-AY35 -> 13557839 | AY35: 82139 | BB35: 0 | BD35: 0.0221 | BE35: =IFERROR(BD35*(AX35),0) -> 299628.2419 | BG35: ='NG and Imported Steam'!E6 -> 199886 | BL35: 5156661 | BN35: 3.9.b. By HDD Truck | BO35: 53
B36: 2017-08-01 | C36: 3294870 | D36: 4424883 | E36: 3998250 | F36: 2868237 | G36: 3998250 | H36: 30 | L36: 0 | S36: 126 | T36: 1745 | U36: 1720 | V36: 151 | W36: 0.08 | X36: 2254 | Z36: 0 | AE36: 882 | AF36: 49014 | AG36: 48132 | AH36: 1764 | AI36: 0.58 | AK36: 0 | AO36: 50823 | AP36: 1178903 | AQ36: 1051500 | AR36: 178226 | AS36: 8.817900053 | AT36: 653623 | AU36: 5249144 | AV36: 0 | AW36: 749034 | AX36: 5165592 | AY36: 178963 | BB36: =AZ36-BC36+BA36 -> 0 | BD36: 0.01886365325 | BE36: =IFERROR(BD36*(AX36),0) -> 97441.9363 | BG36: ='NG and Imported Steam'!E7 -> 199994 | BL36: 5157587
B37: 2017-09-01 | C37: 2868237 | D37: 4428661 | E37: 3912113 | F37: 2351689 | G37: 3912113 | H37: 30 | L37: 0 | S37: 151 | T37: 5828 | U37: 5525 | V37: 454 | W37: 0.136 | X37: 23999 | Z37: 0 | AE37: 1764 | AF37: 47585 | AG37: 48341 | AH37: 1008 | AI37: 0.66 | AK37: 0 | AO37: 178226 | AP37: 1712134 | AQ37: 1802960 | AR37: 87400 | AS37: 3.954309107 | AT37: 749034 | AU37: 8239332 | AV37: 2844075 | AW37: 979921 | AX37: 11158358 | AY37: 155936 | BB37: =AZ37-BC37+BA37 -> 0 | BE37: =IFERROR(BD37*(AX37),0) -> 0 | BG37: ='NG and Imported Steam'!E8 -> 199986 | BL37: 5157462
B38: 2017-10-01 | C38: 2351689 | D38: 4851134 | E38: 3700000 | F38: 1200555 | G38: 3698239 | H38: 30 | L38: 0 | S38: 454 | T38: 3780 | U38: 3604 | V38: 630 | W38: 0.136 | X38: 14274 | Z38: 0 | AE38: 1008 | AF38: 54686 | AG38: 54938 | AH38: 756 | AI38: 0.65 | AK38: 0 | AO38: 87400 | AP38: 2076696 | AQ38: 1978040 | AR38: 186056 | AS38: 6.314938291 | AT38: 979921 | AU38: 6194833 | AV38: 1689555 | AW38: 672500 | AX38: 7421762 | AY38: 155205 | BB38: 0 | BD38: 0.0185 | BE38: 137302.597 | BG38: ='NG and Imported Steam'!E9 -> 200066 | BL38: 5156492
B39: 2017-11-01 | C39: 1339281 | D39: 3838726 | E39: 3700000 | F39: 1200555 | G39: 3398389 | H39: 30 | L39: 0 | S39: 630 | T39: 3226 | U39: 3604 | V39: 252 | W39: 0.136 | X39: 42000 | Z39: 0 | AE39: 756 | AF39: 53267 | AG39: 53267 | AH39: 756 | AI39: 0.66 | AK39: 0 | AO39: 186056 | AP39: 2218282 | AQ39: 2213760 | AR39: 190578 | AS39: 3.950340003 | AT39: 672500 | AU39: 5317613 | AV39: 5200114 | AW39: 1448501 | AX39: 11136304 | AY39: 157424 | BB39: 0 | BD39: 0.0185 | BE39: 206021.624 | BG39: ='NG and Imported Steam'!E10 -> 201074 | BL39: 5156492
B40: 2017-12-01 | C40: 2348865 | D40: 3642779 | E40: 3918174 | F40: 2624260 | G40: 3918174 | H40: 30 | L40: 0 | S40: 252 | T40: 4880 | U40: 4502 | V40: 630 | W40: 0.126 | X40: 17726 | Z40: 0 | AE40: 756 | AF40: 54337 | AG40: 54085 | AH40: 1008 | AI40: 0.65 | AK40: 0 | AO40: 190578 | AP40: 2080693 | AQ40: 2235900 | AR40: 35371 | AS40: 6.163608449 | AT40: 1448501 | AU40: 8182478 | AV40: 489500 | AW40: 866789 | AX40: 7889214 | AY40: 201052 | BB40: 0 | BD40: 0.01516954401 | BE40: 119675.779 | BG40: 200000 | BL40: 5156492
B41: 2018-01-01 | C41: 2624260 | D41: 3939038 | E41: 3998384 | F41: 2683606 | G41: 3998384 | H41: 35 | L41: 0 | S41: 630 | T41: 2072 | U41: 2198 | V41: 504 | W41: 0.139 | X41: 6833 | Z41: 0 | AE41: 1008 | AF41: 45618 | AG41: 46122 | AH41: 504 | AI41: 0.58 | AK41: 0 | AO41: 35371 | AP41: 1490614 | AQ41: 1438460 | AR41: 87525 | AS41: 6.15775233 | AT41: 866789 | AU41: 4836517 | AV41: 1847766 | AW41: 1309814 | AX41: =AW41-AT41+AU41+AV41-AY41 -> 7041987 | AY41: 85321 | BB41: 0 | BD41: 0.0244 | BE41: 171824.4828 | BG41: 199900 | BL41: 5156492 | BN41: Finished Fuel Distribution Standard Value is at 90 miles by HDDT
B42: 2018-02-01 | C42: 2683606 | D42: 2090185 | E42: 3997935 | F42: 4591356 | G42: 3997935 | H42: 35 | L42: 0 | S42: 504 | T42: 1805 | U42: 2259 | V42: 50 | W42: 0.126 | X42: 7435 | Z42: 0 | AE42: 504 | AF42: 59366 | AG42: 58736 | AH42: 1134 | AI42: 0.65 | AK42: 0 | AO42: 87525 | AP42: 2164875 | AQ42: 2110640 | AR42: 141760 | AS42: 5.432107391 | AT42: 1309814 | AU42: 5142198 | AV42: 3555415 | AW42: 1402400 | AX42: =AW42-AT42+AU42+AV42-AY42 -> 8625486 | AY42: 164713 | BB42: 0 | BD42: 0.0244 | BE42: 210461.8584 | BG42: ='NG and Imported Steam'!E13 -> 166416 | BL42: 5158121
B43: 2018-03-01 | C43: 4591356 | D43: 2911008 | E43: 2931971 | F43: 4612319 | G43: 2931971 | H43: 35 | L43: 0 | S43: 50 | T43: 1605 | U43: 1403 | V43: 252 | W43: 0.128 | X43: 7209 | Z43: 0 | AE43: 1134 | AF43: 58643 | AG43: 59021 | AH43: 756 | AI43: 0.65 | AK43: 0 | AO43: 141760 | AP43: 1866364 | AQ43: 1907380 | AR43: 100744 | AS43: 8.740714824 | AT43: 1402400 | AU43: 3139562 | AV43: 2555210 | AW43: 1025893 | AX43: 5228053 | AY43: 90212 | BB43: 0 | BD43: 0.01628566625 | BE43: 85142.3263 | BG43: ='NG and Imported Steam'!E14 -> 167238 | BL43: 5157014
B44: 2018-04-01 | C44: 4612319 | D44: 2129142 | E44: 2958178 | F44: 5441355 | G44: 2958178 | H44: 35 | L44: 0 | S44: 252 | T44: 2502 | U44: 2250 | V44: 504 | W44: 0.124 | X44: 9901 | Z44: 0 | AE44: 756 | AF44: 60033 | AG44: 60183 | AH44: 606 | AI44: 0.64 | AK44: 0 | AO44: 100744 | AP44: 1374673 | AQ44: 1344380 | AR44: 131037 | AS44: 3.413504291 | AT44: 1025893 | AU44: 8001362 | AV44: 5910312 | AW44: 1692101 | AX44: 14345431 | AY44: 232451 | BB44: 0 | BE44: 0 | BG44: ='NG and Imported Steam'!E15 -> 180011 | BL44: 5158036
B45: 2018-05-01 | C45: 5441355 | D45: 2524248 | E45: 2957835 | F45: 5874942 | G45: 2957835 | H45: 35 | L45: 0 | S45: 504 | T45: 3150 | U45: 2999 | V45: 655 | W45: 0.126 | X45: 15143 | Z45: 0 | AE45: 606 | AF45: 54197 | AG45: 53291 | AH45: 1512 | AI45: 0.65 | AK45: 0 | AO45: 131037 | AP45: 1673907 | AQ45: 1709020 | AR45: 95924 | AS45: 4.400933902 | AT45: 1692101 | AU45: 5691696 | AV45: 5555440 | AW45: 779854 | AX45: 10248113 | AY45: 86776 | BB45: 0 | BD45: 0.0301 | BE45: 308468.2013 | BG45: ='NG and Imported Steam'!E16 -> 187325 | BL45: 5157519
B46: 2018-06-01 | C46: 5874942 | D46: 3562533 | E46: 2963066 | F46: 5275475 | G46: 2963066 | H46: 35 | L46: 0 | S46: 655 | T46: 3645 | U46: 3796 | V46: 504 | W46: 0.128 | X46: 13294 | Z46: 0 | AE46: 1512 | AF46: 51846 | AG46: 52602 | AH46: 756 | AI46: 0.65 | AK46: 0 | AO46: 95924 | AP46: 1292675 | AQ46: 1311200 | AR46: 77399 | AS46: 5.264986826 | AT46: 779854 | AU46: 5149028 | AV46: 3325990 | AW46: 784734 | AX46: 8343578 | AY46: 136320 | BB46: 0 | BD46: 0.0286 | BE46: 238626.3308 | BG46: ='NG and Imported Steam'!E17 -> 181087 | BL46: 5158105
B47: 2018-07-01 | C47: 5275475 | D47: 4889315 | E47: 2937465 | F47: 3323625 | G47: 2937465 | H47: 35 | L47: 0 | S47: 504 | T47: 2757 | U47: 2807 | V47: 454 | W47: 0.13 | X47: 9500 | Z47: 0 | AE47: 756 | AF47: 59464 | AG47: 59338 | AH47: 882 | AI47: 0.65 | AK47: 0 | AO47: 77399 | AP47: 1603664 | AQ47: 1576928 | AR47: 104135 | AS47: 3.186438534 | AT47: 784734 | AU47: 9848801 | AV47: 5555556 | AW47: 660814 | AX47: 15066855 | AY47: 213582 | BB47: 0 | BD47: 0.0122 | BE47: 183815.631 | BG47: ='NG and Imported Steam'!E18 -> 183921 | BL47: 2244680
B48: 2018-08-01 | C48: 3323625 | D48: 2869749 | E48: 2957851 | F48: 3411727 | G48: 2957851 | H48: 35 | L48: 0 | S48: 454 | T48: 841 | U48: 917 | V48: 378 | W48: 0.107 | X48: 3908 | Z48: 0 | AE48: 882 | AF48: 52044 | AG48: 51565 | AH48: 1361 | AI48: 0.62 | AK48: 0 | AO48: 104135 | AP48: 1383608 | AQ48: 1329560 | AR48: 158183 | AS48: 4.524700398 | AT48: 660814 | AU48: 6101912 | AV48: 3022151 | AW48: 1016519 | AX48: 9376364 | AY48: 103404 | BB48: 0 | BD48: 0.0122 | BE48: 114391.6408 | BG48: ='NG and Imported Steam'!E19 -> 138304 | BL48: 5655716
B49: 2018-09-01 | C49: 3411727 | D49: 3647867 | E49: 2944894 | F49: 2708754 | G49: 2944894 | H49: 35 | L49: 0 | S49: 378 | T49: 4372 | U49: 3616 | V49: 1134 | W49: 0.107 | X49: 16938 | Z49: 0 | AE49: 1361 | AF49: 56234 | AG49: 56839 | AH49: 756 | AI49: 0.65 | AK49: 0 | AO49: 158183 | AP49: 1589843 | AQ49: 1617100 | AR49: 130926 | AS49: 5.233934233 | AT49: 1016519 | AU49: 9012489 | AV49: 1000078 | AW49: 473715 | AX49: 9313479 | AY49: 156284 | BB49: 0 | BD49: 0.0298 | BE49: 277541.6742 | BG49: ='NG and Imported Steam'!E20 -> 182645 | BL49: 5155765
B50: 2018-10-01 | C50: 2708754 | D50: 3468685 | E50: 3358145 | F50: 2598214 | G50: 3358145 | H50: 35 | L50: 0 | S50: 1134 | T50: 3293 | U50: 3923 | V50: 504 | W50: 0.107 | X50: 14329 | Z50: 0 | AE50: 756 | AF50: 56403 | AG50: 56277 | AH50: 882 | AI50: 0.65 | AK50: 0 | AO50: 130926 | AP50: 1507959 | AQ50: 1570890 | AR50: 67995 | AS50: 6.489306462 | AT50: 473715 | AU50: 6251400 | AV50: 1100078 | AW50: 543445 | AX50: 7220537 | AY50: 200671 | BB50: 0 | BD50: 0.03554765431 | BE50: 256673.1532 | BG50: ='NG and Imported Steam'!E21 -> 189662 | BL50: 5157443
B51: 2018-11-01 | C51: 2598214 | D51: 3374450 | E51: 2955033 | F51: 2178797 | G51: 2955033 | H51: 35 | L51: 0 | S51: 504 | T51: 4583 | U51: 3701 | V51: 1386 | W51: 0.13 | X51: 19507 | Z51: 0 | AE51: 882 | AF51: 54793 | AG51: 54667 | AH51: 1008 | AI51: 0.65 | AK51: 0 | AO51: 67995 | AP51: 1768948 | AQ51: 1635900 | AR51: 201043 | AS51: 5.528252734 | AT51: 543445 | AU51: 7360414 | AV51: 1065061 | AW51: 1025764 | AX51: 8697283 | AY51: 210511 | BB51: 0 | BD51: 0.018 | BE51: 156551.094 | BG51: ='NG and Imported Steam'!E22 -> 189930 | BL51: 5157043
B52: 2018-12-01 | C52: 2178797 | D52: 3026272 | E52: 2958220 | F52: 2110745 | G52: 2958220 | H52: 35 | L52: 0 | S52: 1386 | T52: 4256 | U52: 4505 | V52: 1137 | W52: 0.131 | X52: 15570 | Z52: 0 | AE52: 1008 | AF52: 57790 | AG52: 57790 | AH52: 1008 | AI52: 0.65 | AK52: 0 | AO52: 201043 | AP52: 1606479 | AQ52: 1633520 | AR52: 174002 | AS52: 7.395102485 | AT52: 1025764 | AU52: 6250072 | AV52: 1000078 | AW52: 677893 | AX52: 6685552 | AY52: 216727 | BB52: 0 | BD52: 0.018 | BE52: 120339.936 | BG52: ='NG and Imported Steam'!E23 -> 185330 | BL52: 5157500
B53: 2019-01-01 | C53: 2110745 | D53: 1949966 | E53: 3957842 | F53: 4118621 | G53: 3957842 | H53: 35 | L53: 0 | S53: 1137 | T53: 1504 | U53: 1885 | V53: 756 | W53: 0.141 | X53: 6781 | Z53: 0 | AE53: 1008 | AF53: 54005 | AG53: 54635 | AH53: 378 | AI53: 0.61 | AK53: 0 | AO53: 174002 | AP53: 1325866 | AQ53: 1306780 | AR53: 193088 | AS53: 4.904180576 | AT53: 677893 | AU53: 8245745 | AV53: 1008335 | AW53: 987755 | AX53: 9383908 | AY53: 180034 | BB53: 0 | BD53: 0.00987829698 | BE53: =IFERROR(BD53*(AX53),0) -> 92697.03006 | BG53: ='NG and Imported Steam'!E24 -> 199332 | BL53: 3830586
B54: 2019-02-01 | C54: 4118621 | D54: 2452940 | E54: 3958457 | F54: 5624138 | G54: 3958457 | H54: 35 | L54: 0 | S54: 756 | T54: 1823 | U54: 2503 | V54: 76 | W54: 0.131 | X54: 6139 | Z54: 0 | AE54: 378 | AF54: 67045 | AG54: 66188 | AH54: 1235 | AI54: 0.65 | AK54: 0 | AO54: 193088 | AP54: 2064962 | AQ54: 2098640 | AR54: 159410 | AS54: 3.672523572 | AT54: 987755 | AU54: 11359236 | AV54: 3104696 | AW54: 876677 | AX54: 14198462 | AY54: 154392 | BB54: 0 | BE54: 0 | BG54: ='NG and Imported Steam'!E25 -> 182098 | BL54: 4637104
B55: 2019-03-01 | C55: 5624138 | D55: =C55+E55-F55 -> 5885976 | E55: 2958173 | F55: 2696335 | G55: 2958173 | H55: 35 | L55: 0 | S55: 76 | T55: 631 | U55: 682 | V55: 25 | W55: 0.128 | X55: 2234 | Z55: 0 | AE55: 1235 | AF55: 63494 | AG55: 63595 | AH55: 1134 | AI55: 0.65 | AK55: 0 | AO55: 159410 | AP55: 1055057 | AQ55: 1095220 | AR55: 119247 | AS55: 4.120514288 | AT55: 876677 | AU55: 6279039 | AV55: 0 | AW55: 6116320 | AX55: 11307028 | AY55: 211654 | BB55: 0 | BE55: 0 | BG55: ='NG and Imported Steam'!E26 -> 200356 | BL55: 4009844
B56: 2019-04-01 | C56: 2696335 | D56: 2202574 | E56: 2958015 | F56: 3451776 | G56: 2958015 | H56: 35 | L56: 0 | S56: 25 | T56: 1963 | U56: 1686 | V56: 302 | W56: 0.134 | X56: 8356 | Z56: 0 | AE56: 1134 | AF56: 61094 | AG56: 61472 | AH56: 756 | AI56: 0.66 | AK56: 0 | AO56: 119247 | AP56: 1341971 | AQ56: 1295060 | AR56: 166158 | AS56: 13.80444031 | AT56: 6116320 | AU56: 8689833 | AV56: 0 | AW56: 995459 | AX56: 3351993 | AY56: 216979 | BB56: 0 | BE56: 0 | BG56: ='NG and Imported Steam'!E27 -> 177887 | BL56: 3807208
B57: Total or Ave. | D57: =SUM(D33:D56) -> 79775294 | E57: =SUM(E33:E56) -> 78394584 | G57: =SUM(G33:G56) -> 78091212 | H57: =IFERROR((IF(MAX($H33:$H56)=0,"0",(SUMPRODUCT(G33:G56,H33:H56)/G57))),0) -> 33.31352675 | I57: =SUM(I33:I56) -> 0 | J57: =IFERROR((IF(MAX($J33:$J56)=0,"0",(SUMPRODUCT(I33:I56,J33:J56)/I57))),0) -> 0 | L57: =SUM(L33:L56) -> 0 | M57: =SUM(M33:M56) -> 0 | O57: =SUM(O33:O56) -> 0 | P57: =IFERROR(SUMPRODUCT($O$33:$O$56,P33:P56)/SUM(O33:O56),"0") -> 0 | Q57: =SUM(Q33:Q56) -> 0 | R57: =IFERROR(SUMPRODUCT($Q$33:$Q$56,R33:R56)/SUM($Q$33:$Q$56),"0") -> 0 | T57: =SUM(T33:T56) -> 66653 | U57: =SUM(U33:U56) -> 66477 | W57: =IFERROR(SUMPRODUCT(T33:T56,W33:W56)/T57,0) -> 0.1262875489 | X57: =SUM(X33:X56) -> 287991 | Z57: =SUM(Z33:Z56) -> 0 | AA57: =SUM(AA33:AA56) -> 0 | AC57: =IFERROR(SUMPRODUCT(Z33:Z56,AC33:AC56)/(Z57),0) -> 0 | AD57: =SUM(AD33:AD56) -> 0 | AF57: =SUM(AF33:AF56) -> 1347074 | AG57: =SUM(AG33:AG56) -> 1347956 | AI57: =IFERROR(SUMPRODUCT(AF33:AF56,AI33:AI56)/AF57,0) -> 0.6439766338 | AK57: =SUM(AK33:AK56) -> 0 | AL57: =SUM(AL33:AL56) -> 0 | AN57: =IFERROR(SUMPRODUCT(AK33:AK56,AN33:AN56)/AK57,0) -> 0 | AP57: =SUM(AP33:AP56) -> 38651842 | AQ57: =SUM(AQ33:AQ56) -> 38624718 | AS57: 5.093487586 | AT57: =SUM(AT33:AT56) -> 27940528 | AU57: =SUM(AU33:AU56) -> 164295328 | AV57: =SUM(AV33:AV56) -> 58490583 | AW57: 27820590 | AX57: =AW57-AT57+AU57+AV57-AY57 -> 218694177 | AY57: =SUM(AY33:AY56) -> 3971796 | BA57: =SUM(BA33:BA56) -> 0 | BB57: =SUM(BB33:BB56) -> 0 | BD57: =IFERROR(SUMPRODUCT(BD33:BD56,BE33:BE56)/BE57,0) -> 0.02285187152 | BE57: =SUM(BE33:BE56) -> 3179533.359 | BG57: =SUM(BG33:BG56) -> 4468320 | BH57: =SUM(BH33:BH56) -> 0 | BI57: =SUM(BI33:BI56) -> 0 | BJ57: =IFERROR(SUMPRODUCT(BI33:BI56,BJ33:BJ56)/BI57,0) -> 0 | BK57: =IFERROR(SUMPRODUCT(BI33:BI56,BK33:BK56)/BI57,0) -> 0 | BL57: =SUM(BL33:BL56) -> 116572914 | BM57: =SUM(BM33:BM56) -> 0
B58: Total mmBTU in HHV | X58: =X57 -> 287991 | AD58: =AD57 -> 0 | BG58: =BG57 -> 4468320 | BI58: =BI57*(1-BJ57) -> 0
B59: Convert to mmBTU, in LHV | X59: =X58*Fuel_Specs!$H$10 -> 260030.7087 | AD59: =AD58*Fuel_Specs!$H$10 -> 0 | BG59: =BG58*Fuel_Specs!$H$10 -> 4034502.524 | BH59: =BH57*Fuel_Specs!H11 -> 0 | BN59: Finished Fuel Transport
B60: Convert to BTU/gallons fuel throughput | BG60: =(BG59-AD59-X59) -> 3774471.816 | BH60: 3.3.a. Emission Factor for Biogas gCO2e/mmBTU | BI60: 3.4.a. Emission Factor for Biomass gCO2e/dry ton | BK60: 3.6.a. Emission Factor for Biomass Transportation gCO2e/dry ton-mile | BN60: HDD Truck | BO60: Rail
B61: EF Units | D61: gCO2e/bushel | H61: gCO2e/bushel-mile | J61: gCO2e/bushel-mile | L61: gCO2e/bushel | P61: gCO2e/bushel-mile | R61: gCO2e/bushel-mile | X61: gCO2e/mmBTU NG | AD61: gCO2e/mmBTU NG | AS61: gCO2e/lb DGS | BB61: gCO2e/lb Enzyme | BG61: gCO2e/mmBTU NG | BL61: gCO2e/kWh | BM61: gCO2e/kWh | BN61: gCO2e/gal-mile | BO61: gCO2e/gal-mile
B62: EF | D62: ='EF Tables'!G15 -> 6442.020263 | H62: 4.308954964 | J62: 0.7639320194 | L62: ='EF Tables'!G24 -> 7267.75915 | P62: 4.308954964 | R62: 0.7639320194 | X62: 73364.59464 | AD62: 73364.59464 | AS62: ='EF Tables'!F56 -> 179.0582937 | BB62: 1207.068825 | BG62: 73424.19464 | BL62: =HLOOKUP($BM$29,'EF Tables'!$C$2:$AF$5,2,FALSE) -> 370.2153615 | BM62: 0 | BN62: 0.4136080086 | BO62: 0.08986312951
B63: GHG Emissions, gCO2e | D63: =D57*D62 -> 5.139140605e+11 | H63: =G57*H57*H62 -> 1.120971911e+10 | J63: =I57*J57*J62 -> 0 | L63: =L57*L62 -> 0 | P63: =O57*P57*P62 -> 0 | R63: =Q57*R57*R62 -> 0 | X63: =X59*X62 -> 1.907704754e+10 | AD63: =AD59*AD62 -> 0 | AS63: =AS57*AS62*AX57 -> 1.994559118e+11 | BB63: =BB57*BB62 -> 0 | BG63: =BG60*BG62 -> 2.771375533e+11 | BH63: =BH59*BH62 -> 0 | BI63: =BI58*BI62 -> 0 | BK63: =BK57*BK62*BI58 -> 0 | BL63: =BL57*BL62 -> 4.31570835e+10 | BM63: =BM57*BM62 -> 0 | BN63: =AX57*BO35*BN62 -> 4794044141 | BO63: =AX57*BO33*BO62 -> 4.040562872e+10
B65: Allocation Calculations
O67: Total DGS (dry basis) | R67: DGS allocated to Corn | T67: DGS allocated to Sorghum | V67: Drying emissions Allocated to Corn | X67: Drying Emissions Allocated to Sorghum | AD67: Allocated Ethanol Gallons | AL67: Corn/Sorghum Fiber Natural Gas and Electricity Emissions | AN67: Corn/Sorghum Fiber Transportation Emissions | AX67: Allocated Biogas Usage and Transportation Emissions | BB67: Allocated Biomass Emissions | BF67: Allocated Biomass Transportation Emissions
C68: Corn Feedstock Usage | E68: Corn Farming, Fertilizers, and N2O in soil Emissions | G68: Corn Transportation Emissions | I68: Sorghum Feedstock Usage | K68: Sorghum Farming, Fertilizers, and N2O in soil Emissions | M68: Sorghum Transportation Emissions | O68: DGS totals | P68: dry tons | Q68: dry lbs | R68: Corn | S68: lbs | T68: Sorghum | U68: lbs | V68: Drying emissions | Z68: Allocated Co-Product Credit Emissions | AD68: Total Ethanol Gallons Allocated (gals) | AF68: Corn | AG68: Gallons | AH68: MJ | AI68: Sorghum | AJ68: Gallons | AK68: MJ | AM68: gCO2e | AO68: gCO2e | AP68: Allocated Natural Gas Emissions | AT68: Allocated Electricity Emissions | AX68: Corn | AZ68: Sorghum | BB68: Corn | BD68: Sorghum | BF68: Corn | BH68: Sorghum | BJ68: Allocated Truck Transportation Emissions | BN68: Allocated Rail Transportation Emissions
C69: Percent Corn Use | D69: =IFERROR(D57/(D57+L57),0) -> 1 | E69: Corn | F69: gCO2e | G69: Corn | H69: gCO2e | I69: Percent Sorghum Used | J69: =IFERROR(L57/(L57+D57),0) -> 0 | K69: Sorghum | L69: gCO2e | M69: Sorghum | N69: gCO2e | O69: DDGS | P69: =T57*(1-W57) -> 58235.556 | Q69: =P69*2000 -> 116471112 | R69: DDGS | S69: =IFERROR(P69*$D$69*2000,0) -> 116471112 | T69: DDGS | U69: =IFERROR(P69*$J$69*2000,0) -> 0 | V69: Corn | W69: gCO2e | X69: Sorghum | Y69: gCO2e | Z69: Corn | AA69: gCO2e | AB69: Sorghum | AC69: gCO2e | AD69: corn | AE69: =IFERROR((AX57*D69)-(AE72*D69),0) -> 215514643.6 | AF69: DDGS | AG69: =IFERROR(AE69*S69/S72,0) -> 23335855.2 | AH69: =IFERROR(AG69*Fuel_Specs!B8/1000000*Fuel_Specs!H40,0) -> 1879292730 | AI69: DDGS | AJ69: =IFERROR(AE70*U69/U72,0) -> 0 | AK69: =IFERROR(AJ69*Fuel_Specs!B8/1000000*Fuel_Specs!H40,0) -> 0 | AL69: NG emissions | AM69: =IFERROR(BG63*AE72/AX57,0) -> 4029225230 | AN69: Truck | AO69: =IFERROR(AE72*BN62*BO35,0) -> 69699264.42 | AP69: Corn | AQ69: gCO2e | AR69: Sorghum | AS69: gCO2e | AT69: Corn | AU69: gCO2e | AV69: Sorghum | AW69: gCO2e | AX69: DGS | AY69: =IFERROR(BH63*AG69/AX57,0) -> 0 | AZ69: DGS | BA69: =IFERROR(BH63*AJ69/AX57,0) -> 0 | BB69: DGS | BC69: =IFERROR($BI$63*AG69/$AX$57,0) -> 0 | BD69: DGS | BE69: =IFERROR($BI$63*AJ69/$AX$57,0) -> 0 | BF69: DGS | BG69: =IFERROR($BK$63*AG69/$AX$57,0) -> 0 | BH69: DGS | BI69: =IFERROR($BK$63*AJ69/$AX$57,0) -> 0 | BJ69: Corn | BK69: gCO2e | BL69: Sorghum | BM69: gCO2e | BN69: Corn | BO69: gCO2e | BP69: Sorghum | BQ69: gCO2e
E70: DDGS | F70: =IFERROR(D63*AG69/AE69,0) -> 5.564644656e+10 | G70: DDGS | H70: =IFERROR((H63+J63+'EF Tables'!C29)*AG69/AE69,0) -> 2678594498 | K70: DDGS | L70: =IFERROR(L63*AJ69/AE70,0) -> 0 | M70: DDGS | N70: =IFERROR((P63+R63+'EF Tables'!C34)*AJ69/AE70,0) -> 0 | O70: MDGS | P70: =Z57*(1-AC57) -> 0 | Q70: =P70*2000 -> 0 | R70: MDGS | S70: =IFERROR(P70*$D$69*2000,0) -> 0 | T70: MDGS | U70: =IFERROR(P70*$J$69*2000,0) -> 0 | V70: DDGS | W70: =IFERROR(X$63*S69/Q69,0) -> 1.907704754e+10 | X70: DDGS | Y70: =IFERROR(X63*U69/Q69,0) -> 0 | Z70: DDGS | AA70: =IFERROR(AS63*S69/Q72,0) -> 2.159702097e+10 | AB70: DDGS | AC70: =IFERROR(AS63*U69/Q72,0) -> 0 | AD70: sorghum | AE70: =IFERROR((AX57*J69)-(AE72*J69),0) -> 0 | AF70: MDGS | AG70: =IFERROR(AE69*S70/S72,0) -> 0 | AH70: =IFERROR(AG70*Fuel_Specs!B8/1000000*Fuel_Specs!H40,0) -> 0 | AI70: MDGS | AJ70: =IFERROR(AE70*U70/U72,0) -> 0 | AK70: =IFERROR(AJ70*Fuel_Specs!B8/1000000*Fuel_Specs!H40,0) -> 0 | AL70: Electricity emissions | AM70: =IFERROR(BL63*AE72/AX57,0) -> 627448743.9 | AN70: Rail | AO70: =IFERROR(AE72*BO33*BO62,0) -> 587446113.8 | AP70: DDGS | AQ70: =IFERROR($BG$63*AG69/$AX$57,0) -> 2.957208053e+10 | AR70: DDGS | AS70: =IFERROR($BG$63*AJ69/$AX$57,0) -> 0 | AT70: DDGS | AU70: =IFERROR($BL$63*AG69/$AX$57,0) -> 4605094957 | AV70: DDGS | AW70: =IFERROR($BL$63*AJ69/$AX$57,0) -> 0 | AX70: MDGS | AY70: =IFERROR(BH63*AG70/AX57,0) -> 0 | AZ70: MDGS | BA70: =IFERROR(BH63*AJ70/AX57,0) -> 0 | BB70: MDGS | BC70: =IFERROR($BI$63*AG70/$AX$57,0) -> 0 | BD70: MDGS | BE70: =IFERROR($BI$63*AJ70/$AX$57,0) -> 0 | BF70: MDGS | BG70: =IFERROR($BK$63*AG70/$AX$57,0) -> 0 | BH70: MDGS | BI70: =IFERROR($BK$63*AJ70/$AX$57,0) -> 0 | BJ70: DDGS | BK70: =IFERROR($BO$35*$BN$62*AG69,0) -> 511550519.7 | BL70: DDGS | BM70: =IFERROR($BN$62*$BO$35*AJ69,0) -> 0 | BN70: DDGS | BO70: =IFERROR($BO$33*$BO$62*AG69,0) -> 4311499803 | BP70: DDGS | BQ70: =IFERROR($BO$62*$BO$33*AJ69,0) -> 0
E71: MDGS | F71: =IFERROR(D63*AG70/AE69,0) -> 0 | G71: MDGS | H71: =IFERROR((H63+J63+'EF Tables'!C29)*AG70/AE69,0) -> 0 | K71: MDGS | L71: =IFERROR(L63*AJ70/AE70,0) -> 0 | M71: MDGS | N71: =IFERROR((P63+R63+'EF Tables'!C34)*AJ70/AE70,0) -> 0 | O71: WDGS | P71: =AF57*(1-AI57) -> 479589.82 | Q71: 959179640 | R71: WDGS | S71: =IFERROR(P71*$D$69*2000,0) -> 959179640 | T71: WDGS | U71: =IFERROR(P71*$J$69*2000,0) -> 0 | V71: MDGS | W71: =IFERROR(AD63*S70/Q70,0) -> 0 | X71: MDGS | Y71: =IFERROR(AD63*U70/Q70,0) -> 0 | Z71: MDGS | AA71: =IFERROR(AS63*S70/Q72,0) -> 0 | AB71: MDGS | AC71: =IFERROR(AS63*U70/Q72,0) -> 0 | AF71: WDGS | AG71: =IFERROR(AE69*S71/S72,0) -> 192178788.4 | AH71: =IFERROR(AG71*Fuel_Specs!B8/1000000*Fuel_Specs!H40,0) -> 1.547662157e+10 | AI71: WDGS | AJ71: =IFERROR(AE70*U71/U72,0) -> 0 | AK71: =IFERROR(AJ71*Fuel_Specs!B8/1000000*Fuel_Specs!H40,0) -> 0 | AP71: MDGS | AQ71: =IFERROR($BG$63*AG70/$AX$57,0) -> 0 | AR71: MDGS | AS71: =IFERROR($BG$63*AJ70/$AX$57,0) -> 0 | AT71: MDGS | AU71: =IFERROR($BL$63*AG70/$AX$57,0) -> 0 | AV71: MDGS | AW71: =IFERROR($BL$63*AJ70/$AX$57,0) -> 0 | AX71: WDGS | AY71: =IFERROR(BH63*AG71/AX57,0) -> 0 | AZ71: WDGS | BA71: =IFERROR(BH63*AJ71/AX57,0) -> 0 | BB71: WDGS | BC71: =IFERROR($BI$63*AG71/$AX$57,0) -> 0 | BD71: WDGS | BE71: =IFERROR($BI$63*AJ71/$AX$57,0) -> 0 | BF71: WDGS | BG71: =IFERROR($BK$63*AG71/$AX$57,0) -> 0 | BH71: WDGS | BI71: =IFERROR($BK$63*AJ71/$AX$57,0) -> 0 | BJ71: MDGS | BK71: =IFERROR($BO$35*$BN$62*AG70,0) -> 0 | BL71: MDGS | BM71: =IFERROR($BN$62*$BO$35*AJ70,0) -> 0 | BN71: MDGS | BO71: =IFERROR($BO$33*$BO$62*AG70,0) -> 0 | BP71: MDGS | BQ71: =IFERROR($BO$62*$BO$33*AJ70,0) -> 0
E72: WDGS | F72: =IFERROR(D63*AG71/AE69,0) -> 4.582676139e+11 | G72: WDGS | H72: =IFERROR((H63+J63+'EF Tables'!C29)*AG71/AE69,0) -> 2.205914636e+10 | K72: WDGS | L72: =IFERROR(L63*AJ71/AE70,0) -> 0 | M72: WDGS | N72: =IFERROR((P63+R63+'EF Tables'!C34)*AJ71/AE70,0) -> 0 | O72: Total DGS | P72: =SUM(P69:P71) -> 537825.376 | Q72: =SUM(Q69:Q71) -> 1075650752 | R72: Total DGS from Corn | S72: =SUM(S69:S71) -> 1075650752 | T72: Total DGS Sorghum | U72: =SUM(U69:U71) -> 0 | V72: WDGS | W72: 0 | X72: WDGS | Y72: 0 | Z72: WDGS | AA72: =IFERROR(AS63*S71/Q72,0) -> 1.778588908e+11 | AB72: WDGS | AC72: =IFERROR(AS63*U71/Q72,0) -> 0 | AD72: Corn/Sorghum Fiber | AE72: =IFERROR(BE57,0) -> 3179533.359 | AF72: Corn/Sorghum Fiber | AG72: =AE72 -> 3179533.359 | AH72: =IFERROR(AE72*Fuel_Specs!B8/1000000*Fuel_Specs!H40,0) -> 256055493.7 | AP72: WDGS | AQ72: =IFERROR($BG$63*AG71/$AX$57,0) -> 2.435362475e+11 | AR72: WDGS | AS72: =IFERROR($BG$63*AJ71/$AX$57,0) -> 0 | AT72: WDGS | AU72: =IFERROR($BL$63*AG71/$AX$57,0) -> 3.79245398e+10 | AV72: WDGS | AW72: =IFERROR($BL$63*AJ71/$AX$57,0) -> 0 | AX72: Corn/Sorghum Fiber | AY72: =IFERROR(BH63*AE72/AX57,0) -> 0 | BB72: Corn/Sorghum Fiber | BC72: =IFERROR(BI63*AE72/AX57,0) -> 0 | BF72: Corn/Sorghum Fiber | BG72: =IFERROR(BK63*AE72/AX57,0) -> 0 | BJ72: WDGS | BK72: =IFERROR($BO$35*$BN$62*AG71,0) -> 4212794357 | BL72: WDGS | BM72: =IFERROR($BN$62*$BO$35*AJ71,0) -> 0 | BN72: WDGS | BO72: =IFERROR($BO$33*$BO$62*AG71,0) -> 3.55066828e+10 | BP72: WDGS | BQ72: =IFERROR($BO$62*$BO$33*AJ71,0) -> 0
AD73: Allocated Denatured Ethanol Gallons
AD74: Total Denatured Ethanol Gallons Allocated (gals) | AF74: Corn | AI74: Sorghum
AD75: corn | AE75: =IFERROR(AE69+(AE69*$AY$57/$AX$57),0) -> 219428694.8 | AF75: DDGS | AG75: =IFERROR(AG69+(AG69*$AY$57/$AX$57),0) -> 23759667.38 | AI75: DDGS | AJ75: =IFERROR(AJ69+(AJ69*$AY$57/$AX$57),0) -> 0
B76: Section 4. CI Calculation Details | AD76: sorghum | AE76: =IFERROR(AE70+(AE70*$AY$57/$AX$57),0) -> 0 | AF76: MDGS | AG76: =IFERROR(AG70+(AG70*$AY$57/$AX$57),0) -> 0 | AI76: MDGS | AJ76: =IFERROR(AJ70+(AJ70*$AY$57/$AX$57),0) -> 0
B77: Category | C77: Parameters | E77: Corn Ethanol | I77: Sorghum Ethanol | AF77: WDGS | AG77: =IFERROR(AG71+(AG71*$AY$57/$AX$57),0) -> 195669027.4 | AI77: WDGS | AJ77: =IFERROR(AJ71+(AJ71*$AY$57/$AX$57),0) -> 0
E78: DDGS | F78: MDGS | G78: WDGS | H78: Corn Fiber | I78: DDGS | J78: MDGS | K78: WDGS | AD78: Corn/Sorghum Fiber | AE78: 3237278.188 | AF78: Corn/Sorghum Fiber | AG78: =IFERROR(AG72+(AG72*$AY$57/$AX$57),0) -> 3237278.188
B79: Feedstock Production | C79: Electricity Mix | E79: =D25 -> 1-U.S Ave Mix | I79: =D25 -> 1-U.S Ave Mix
C80: Ethanol Yield, gal/bu | E80: =IF(D57=0,0,IFERROR(AX57/(D57+L57),0)) -> 2.741377261 | I80: =IF(L57=0,0,IFERROR(AX57/(D57+L57),0)) -> 0
C81: DGS Yield. Lbs DGS/gal ETOH | E81: =IF(D57=0,0,AS57) -> 5.093487586 | I81: =IF(L57=0,0,AS57) -> 0
C82: Corn /Sorghum Farming, Fertilizers and Ag Chemicals, N2O in Soil, gCO2e/MJ | E82: =IFERROR((E83)/AH69,0) -> 29.61031333 | F82: =IFERROR((F83)/AH70,0) -> 0 | G82: =IFERROR((G83)/AH71,0) -> 29.61031333 | I82: =IFERROR((I83)/AK69,0) -> 0 | J82: =IFERROR((J83)/AK70,0) -> 0 | K82: =IFERROR((K83)/AK71,0) -> 0
D83: gCO2e | E83: =F70 -> 5.564644656e+10 | F83: =F71 -> 0 | G83: =F72 -> 4.582676139e+11 | I83: =L70 -> 0 | J83: =L71 -> 0 | K83: =L72 -> 0
C84: Corn/Sorghum Transport, gCO2e/MJ | E84: =IFERROR((E85)/AH69,0) -> 1.425320524 | F84: =IFERROR((F85)/AH70,0) -> 0 | G84: =IFERROR((G85)/AH71,0) -> 1.425320524 | I84: =IFERROR((I85)/AK69,0) -> 0 | J84: =IFERROR((J85)/AK70,0) -> 0 | K84: =IFERROR((K85)/AK71,0) -> 0
D85: gCO2e | E85: =H70 -> 2678594498 | F85: =H71 -> 0 | G85: =H72 -> 2.205914636e+10 | I85: =N70 -> 0 | J85: =N71 -> 0 | K85: =N72 -> 0
C86: Co-product Credit, gCO2e/MJ | E86: =IFERROR((E87)/AH69,0) -> -11.49210053 | F86: =IFERROR((F87)/AH70,0) -> 0 | G86: =IFERROR((G87)/AH71,0) -> -11.49210053 | I86: =IFERROR((I87)/AK69,0) -> 0 | J86: =IFERROR((J87)/AK70,0) -> 0 | K86: =IFERROR((K87)/AK71,0) -> 0
D87: gCO2e | E87: =IFERROR(-AA70,0) -> -2.159702097e+10 | F87: =IFERROR(-AA71,0) -> 0 | G87: =IFERROR(-AA72,0) -> -1.778588908e+11 | I87: =IFERROR(-AC70,0) -> 0 | J87: =IFERROR(-AC71,0) -> 0 | K87: =IFERROR(-AC72,0) -> 0
B88: Ethanol Production | C88: Electricity Mix | E88: =BM29 -> 3-CAMX Mix | I88: =BM29 -> 3-CAMX Mix
C89: Ethanol Production
C90: Total feedstock used, bushels | E90: =(D57+L57) -> 79775294 | I90: =IF(L57=0,0,D57+L57) -> 0
C91: Total undenatured ethanol, gallons | E91: =AX57 -> 218694177 | I91: =IF(L57=0,0,AX57) -> 0
C92: Ethanol Yield, gal ethanol /bushel | E92: =IFERROR(E91/(D57+L57),0) -> 2.741377261 | I92: =IF(L57=0,0,IFERROR(I91/(D57+L57),0)) -> 0
C93: Natural Gas Usage, gCO2e/MJ | E93: =IFERROR((E94)/AH69,0) -> 15.73574998 | F93: =IFERROR((F94)/AH70,0) -> 0 | G93: =IFERROR((G94)/AH71,0) -> 15.73574998 | H93: =IFERROR((H94)/AH72,0) -> 15.73574998 | I93: =IFERROR((I94)/AK69,0) -> 0 | J93: =IFERROR((J94)/AK70,0) -> 0 | K93: =IFERROR((K94)/AK71,0) -> 0
C94: gCO2e | E94: =AQ70 -> 2.957208053e+10 | F94: =AQ71 -> 0 | G94: =AQ72 -> 2.435362475e+11 | H94: =AM69 -> 4029225230 | I94: =AS70 -> 0 | J94: =AS71 -> 0 | K94: =AS72 -> 0
C95: Natural Gas Usage for Drying, gCO2e/MJ | E95: =IFERROR((E96)/AH69,0) -> 10.15118467 | F95: =IFERROR((F96)/AH70,0) -> 0 | G95: =IFERROR((G96)/AH71,0) -> 0 | I95: =IFERROR((I96)/AK69,0) -> 0 | J95: =IFERROR((J96)/AK70,0) -> 0 | K95: =IFERROR((K96)/AK71,0) -> 0
C96: gCO2e | E96: =IFERROR(W70,0) -> 1.907704754e+10 | F96: =IFERROR(W71,0) -> 0 | G96: 0 | I96: =IFERROR(Y70,0) -> 0 | J96: =IFERROR(Y71,0) -> 0 | K96: 0
C97: Electricity Usage, gCO2e/MJ | E97: =IFERROR((E98)/AH69,0) -> 2.450440468 | F97: =IFERROR((F98)/AH70,0) -> 0 | G97: =IFERROR((G98)/AH71,0) -> 2.450440468 | H97: =IFERROR((H98)/AH72,0) -> 2.450440468 | I97: =IFERROR((I98)/AK69,0) -> 0 | J97: =IFERROR((J98)/AK70,0) -> 0 | K97: =IFERROR((K98)/AK71,0) -> 0
C98: gCO2e | E98: =AU70 -> 4605094957 | F98: =AU71 -> 0 | G98: =AU72 -> 3.79245398e+10 | H98: =AM70 -> 627448743.9 | I98: =AW70 -> 0 | J98: =AW71 -> 0 | K98: =AW72 -> 0
C99: Biogas Usage and Transportation, gCO2e/MJ | E99: =IFERROR(E100/AH69,0) -> 0 | F99: =IFERROR(F100/AH70,0) -> 0 | G99: =IFERROR(G100/AH71,0) -> 0 | H99: =IFERROR(H100/AH72,0) -> 0 | I99: =IFERROR(I100/AK69,0) -> 0 | J99: =IFERROR(J100/AK70,0) -> 0 | K99: =IFERROR(K100/AK71,0) -> 0
D100: gCO2e | E100: =AY69 -> 0 | F100: =AY70 -> 0 | G100: =AY71 -> 0 | H100: =AY72 -> 0 | I100: =BA69 -> 0 | J100: =BA70 -> 0 | K100: =BA71 -> 0
C101: Biomass Usage and Transportation, gCO2e/MJ | E101: =IFERROR(E102/AH69,0) -> 0 | F101: =IFERROR(F102/AH70,0) -> 0 | G101: =IFERROR(G102/AH71,0) -> 0 | H101: =IFERROR(H102/AH72,0) -> 0 | I101: =IFERROR(I102/AK69,0) -> 0 | J101: =IFERROR(J102/AK70,0) -> 0 | K101: =IFERROR(K102/AK71,0) -> 0
D102: gCO2e | E102: =BC69+BG69 -> 0 | F102: =BC70+BG70 -> 0 | G102: =BC71+BG71 -> 0 | H102: =BC72+BG72 -> 0 | I102: =BE69+BI69 -> 0 | J102: =BE70+BI70 -> 0 | K102: =BE71+BI71 -> 0
C103: Chemicals Usage (Standard) | E103: =IFERROR((E104)/AH69,0) -> 2.02 | F103: =IFERROR((F104)/AH70,0) -> 0 | G103: =IFERROR((G104)/AH71,0) -> 2.02 | H103: =IFERROR((H104)/AH72,0) -> 0 | I103: =IFERROR((I104)/AK69,0) -> 0 | J103: =IFERROR((J104)/AK70,0) -> 0 | K103: =IFERROR((K104)/AK71,0) -> 0
C104: gCO2e | E104: ='EF Tables'!C39*EtOH!AG69 -> 3796171314 | F104: ='EF Tables'!C39*AG70 -> 0 | G104: ='EF Tables'!C39*AG71 -> 3.126277556e+10 | H104: =BB63 -> 0 | I104: ='EF Tables'!C39*AJ69 -> 0 | J104: ='EF Tables'!C39*AJ70 -> 0 | K104: ='EF Tables'!C39*AJ71 -> 0
C105: Ethanol Transport HDD Truck, gCO2e/MJ | E105: =IFERROR((E106)/AH69,0) -> 0.2722037454 | F105: =IFERROR((F106)/AH70,0) -> 0 | G105: =IFERROR((G106)/AH71,0) -> 0.2722037454 | H105: =IFERROR((H106)/AH72,0) -> 0.2722037454 | I105: =IFERROR((I106)/AK69,0) -> 0 | J105: =IFERROR((J106)/AK70,0) -> 0 | K105: =IFERROR((K106)/AK71,0) -> 0
C106: From EtOH Plant to railyard, gCO2e | E106: =BK70 -> 511550519.7 | F106: =BK71 -> 0 | G106: =BK72 -> 4212794357 | H106: =AO69 -> 69699264.42 | I106: =BM70 -> 0 | J106: =BM71 -> 0 | K106: =BM72 -> 0
C107: Ethanol Transport Rail, gCO2e/MJ | E107: =IFERROR((E108)/AH69,0) -> 2.29421406 | F107: =IFERROR((F108)/AH70,0) -> 0 | G107: =IFERROR((G108)/AH71,0) -> 2.29421406 | H107: =IFERROR((H108)/AH72,0) -> 2.29421406 | I107: =IFERROR((I108)/AK69,0) -> 0 | J107: =IFERROR((J108)/AK70,0) -> 0 | K107: =IFERROR((K108)/AK71,0) -> 0
C108: From railyard to CA railyard, gCO2e | E108: =BO70 -> 4311499803 | F108: =BO71 -> 0 | G108: =BO72 -> 3.55066828e+10 | H108: =AO70 -> 587446113.8 | I108: =BQ70 -> 0 | J108: =BQ71 -> 0 | K108: =BQ72 -> 0
C109: Ethanol Distribution, gCO2e/MJ | E109: =IFERROR((E110)/AH69,0) -> 0.4621127503 | F109: =IFERROR((F110)/AH70,0) -> 0 | G109: =IFERROR((G110)/AH71,0) -> 0.4621127503 | H109: =IFERROR((H110)/AH72,0) -> 0.4621127503 | I109: =IFERROR((I110)/AK69,0) -> 0 | J109: =IFERROR((J110)/AK70,0) -> 0 | K109: =IFERROR((K110)/AK71,0) -> 0
C110: From terminal to fuel stations, gCO2e | E110: ='EF Tables'!D44 -> 868445131.8 | F110: ='EF Tables'!D45 -> 0 | G110: ='EF Tables'!D46 -> 7151944157 | H110: ='EF Tables'!D47 -> 118326508.4 | I110: ='EF Tables'!D49 -> 0 | J110: ='EF Tables'!D50 -> 0 | K110: ='EF Tables'!D51 -> 0
C111: Denaturant CI, gCO2e/MJ | E111: =IF(E93=0,0,'EF Tables'!D73) -> 1.017157106 | F111: =IF(F93=0,0,'EF Tables'!E73) -> 0 | G111: =IF(G93=0,0,'EF Tables'!F73) -> 1.38591202 | H111: =IF(BE57=0,0,'EF Tables'!G73) -> 2.888495875 | I111: =IF(I93=0,0,'EF Tables'!I73) -> 0 | J111: =IF(J93=0,0,'EF Tables'!J73) -> 0 | K111: =IF(K93=0,0,'EF Tables'!K73) -> 0
C112: Non-Combustion CI, gCO2e/MJ | E112: ='EF Tables'!C5 -> 0.08669474691 | F112: ='EF Tables'!C5 -> 0.08669474691 | G112: ='EF Tables'!C5 -> 0.08669474691 | H112: ='EF Tables'!C5 -> 0.08669474691 | I112: ='EF Tables'!C5 -> 0.08669474691 | J112: ='EF Tables'!C5 -> 0.08669474691 | K112: ='EF Tables'!C5 -> 0.08669474691
C113: Indirect Land Use, gCO2e/MJ | E113: ='EF Tables'!D59 -> 19.8 | F113: ='EF Tables'!D59 -> 19.8 | G113: ='EF Tables'!D59 -> 19.8 | H113: 0 | I113: ='EF Tables'!D60 -> 19.4 | J113: ='EF Tables'!D60 -> 19.4 | K113: ='EF Tables'!D60 -> 19.4

Sheet EF Tables
B1: Greenhouse Gases Emissions Factors Used in CA-GREET 3.0 for Carbon Intensity Calculations (see "CA-GREET 3.0 for EF Table")
B2: GHG Emission Factors | C2: 1-U.S Ave Mix | D2: 2-User Defined Mix | E2: 3-CAMX Mix | F2: 4-NWPP Mix | G2: 5-AZNM Mix | H2: 6-RMPA Mix | I2: 7-MROW Mix | J2: 8-SPNO Mix | K2: 9-SPSO Mix | L2: 10-ERCT Mix | M2: 11-MROE Mix | N2: 12-SRMW Mix | O2: 13-SRMV Mix | P2: 14-RFCM Mix | Q2: 15-RFCW Mix | R2: 16-SRTV Mix | S2: 17-SRSO Mix | T2: 18-NEWE Mix | U2: 19-NYUP Mix | V2: 20-RFCE Mix | W2: 21-NYLI Mix | X2: 22-NYCW Mix | Y2: 23-SRVC Mix | Z2: 24-FRCC Mix | AA2: 25-AKMS Mix | AB2: 26-AKGD Mix | AC2: 27-HIOA Mix | AD2: 28-HIMS Mix | AE2: 29-Brazilian Mix | AF2: 30-Canadian Mix
B3: Emissions from Electricity use (gCO2e/kWh) | C3: 610.3418915 | D3: =EtOH!BO29 -> 0 | E3: 370.2153615 | F3: 476.6675589 | G3: 460.828593 | H3: 851.0302066 | I3: 684.3534391 | J3: 792.60226 | K3: 795.0546932 | L3: 638.5930168 | M3: 892.006906 | N3: 924.3059717 | O3: 614.2474033 | P3: 785.9173014 | Q3: 738.4269048 | R3: 682.1417198 | S3: 628.5383725 | T3: 356.8984902 | U3: 231.0811543 | V3: 462.5107826 | W3: 627.0563909 | X3: 356.8338354 | Y3: 493.6181335 | Z3: 601.6503365 | AA3: 161.9571553 | AB3: 747.5726312 | AC3: 1127.536138 | AD3: 680.4957247 | AE3: 193.692493 | AF3: 176.2324788
B5: Non-combustion (gCO2e/MJ) | C5: =2.239/Fuel_Specs!$I$8*Fuel_Specs!$B$17*$D$77 -> 0.08669474691
B6: Enzymes and Yeast (gCO2e/MJ) | C6: 2.02
C8: Corn Farming, Fertilizers, N2O in soil
D9: Farming | E9: Fertilizers | F9: N2O in soil | G9: Total, gCO2e/bushel
C10: VOC | D10: 0.7555264982 | E10: 2.628470011
C11: CO | D11: 7.419691756 | E11: 3.25289553
C12: CH4 | D12: 1.901034394 | E12: 5.9374487
C13: N2O | D13: 0.01830601522 | E13: 0.7761120462 | F13: 10.69941862
C14: CO2 | D14: 615.2654208 | E14: 2178.311437
C15: Total, gCO2e/bushel | D15: 682.2607131 | E15: 2571.332802 | F15: 3188.426748 | G15: =SUM(D15:F15) -> 6442.020263
C17: Sorghum Farming, Fertilizers, N2O in soil
D18: Farming | E18: Fertilizers | F18: N2O is soil | G18: Total, gCO2e/bushel
C19: VOC | D19: 0.9058733188 | E19: 2.83722221
C20: CO | D20: 7.42405237 | E20: 3.669714321
C21: CH4 | D21: 2.167104373 | E21: 7.032910331
C22: N2O | D22: 0.02198108315 | E22: 0.8554685742 | F22: 11.60687609
C23: CO2 | D23: 956.0691659 | E23: 2332.2615
C24: Total, gCO2e/bushel | D24: 1031.286811 | E24: 2777.623263 | F24: 3458.849076 | G24: =SUM(D24:F24) -> 7267.75915
C27: MDT Truck - Corn to Stack
C28: 17.25632188 | D28: gCO2e/bushel-mile
C29: =(EtOH!E57)*10*C28 -> 1.352802175e+10 | D29: gCO2e
C32: MDT Truck - Sorghum to Stack
C33: 17.25632188 | D33: gCO2e/bushel-mile
C34: =(EtOH!M57)*10*C33 -> 0 | D34: gCO2e
C36: Chemical usage
C37: =C6*Fuel_Specs!H40 -> 2131.212817 | D37: gCO2e/mmBTU
C38: =C37/1000000 -> 0.002131212817 | D38: gCO2e/BTU
C39: =C38*Fuel_Specs!B8 -> 162.6754743 | D39: gCO2e/Gal
C42: Finished Fuel Distribution
C43: Corn | G43: HDT Truck Emission Factor - California Distribution
C44: DDGS | D44: =90*G44*EtOH!AG69 -> 868445131.8 | E44: gCO2e | G44: 0.4135006097 | H44: gCO2e/gal-mile
C45: MDGS | D45: =90*G44*EtOH!AG70 -> 0 | E45: gCO2e
C46: WDGS | D46: =90*G44*EtOH!AG71 -> 7151944157 | E46: gCO2e
C47: Corn Fiber | D47: =90*G44*EtOH!AE72 -> 118326508.4 | E47: gCO2e
C48: Sorghum
C49: DDGS | D49: =90*G44*EtOH!AJ69 -> 0 | E49: gCO2e
C50: MDGS | D50: =90*G44*EtOH!AJ70 -> 0 | E50: gCO2e
C51: WDGS | D51: =90*G44*EtOH!AJ71 -> 0 | E51: gCO2e
C54: Co-product Credit - Corn Ethanol
C55: Corn | D55: SBM | E55: Urea | F55: Total, gCO2e/bone-dry lb
C56: =89.8572161376031+(EtOH!D69*(0.240701671413685*10+0.0601039241861255*EtOH!H57+0.0106557883668039*EtOH!J57))+(EtOH!J69*(0.240701671413685*10+0.0601039241861255*EtOH!P57+0.0106557883668039*EtOH!R57)) -> 94.26650654 | D56: 71.62932521 | E56: 13.16246194 | F56: =SUM(C56:E56) -> 179.0582937
C58: Indirect Land Use (ILUC) | D58: gCO2e/MJ
C59: Corn | D59: 19.8
C60: Sorghum | D60: 19.4
C62: Denatured Ethanol (D-EtOH) Calculator
C63: Volume % Ethanol in D-EtOH | D63: 0.975 | F63: v/v EtOH/D-EtOH
C64: Volume % of Denaturant (CARBOB and "Other") in D-EtOH | D64: =IFERROR(EtOH!AY57/EtOH!AU57,0) -> 0.0241747349 | F64: v/v CARBOB/D-EtOH
C65: Energy % Denaturant in D-EtOH | D65: =IFERROR(D64*Fuel_Specs!$I$6/81.51,0) -> 0.03632629356 | F65: MJ/MJ CARBOB/D-EtOH
C66: CARBOB CI * | D66: 100.8167087
C67: 2010 Average Ethanol CI | D67: 77.8095 | F67: g CO2e/MJ
C68: 2010 Denaturant CI (CARBOB CI without tailpipe N2O & CH4) | D68: 99.76825493 | F68: g CO2e/MJ
C69: Net Denaturant Contribution to CI | D69: =((1-D65)*D67+D65*D68)-D67 -> 0.7976801779 | F69: g CO2e/MJ
C70: 2010 D-EtOH CI | D70: =(1-D65)*D67+D65*D68 -> 78.60718018 | F70: g CO2e/MJ
D71: Corn - DDGS | E71: Corn - MDGS | F71: Corn - WDGS | G71: Corn fiber | I71: Sorghum - DDGS | J71: Sorghum - MDGS | K71: Sorghum - WDGS
C72: Enter CI of any anhydrous ethanol (including ILUC) here: | D72: =EtOH!E82+EtOH!E84+EtOH!E86+EtOH!E93+EtOH!E95+EtOH!E97+EtOH!E103+EtOH!E105+EtOH!E107+EtOH!E109+EtOH!E112+EtOH!E113+EtOH!E99+EtOH!E101 -> 72.81613375 | E72: =EtOH!F82+EtOH!F84+EtOH!F86+EtOH!F93+EtOH!F95+EtOH!F97+EtOH!F103+EtOH!F105+EtOH!F107+EtOH!F109+EtOH!F112+EtOH!F113+EtOH!F99+EtOH!F101 -> 19.88669475 | F72: =EtOH!G82+EtOH!G84+EtOH!G86+EtOH!G93+EtOH!G95+EtOH!G97+EtOH!G103+EtOH!G105+EtOH!G107+EtOH!G109+EtOH!G112+EtOH!G113+EtOH!G99+EtOH!G101 -> 62.66494908 | G72: =EtOH!H93+EtOH!H97+EtOH!H103+EtOH!H105+EtOH!H107+EtOH!H109+EtOH!H112+EtOH!H99+EtOH!H101 -> 21.30141575 | I72: =EtOH!I82+EtOH!I84+EtOH!I86+EtOH!I93+EtOH!I95+EtOH!I97+EtOH!I103+EtOH!I105+EtOH!I107+EtOH!I109+EtOH!I112+EtOH!I113+EtOH!I99+EtOH!I101 -> 19.48669475 | J72: =EtOH!J82+EtOH!J84+EtOH!J86+EtOH!J93+EtOH!J95+EtOH!J97+EtOH!J103+EtOH!J105+EtOH!J107+EtOH!J109+EtOH!J112+EtOH!J113+EtOH!J99+EtOH!J101 -> 19.48669475 | K72: =EtOH!K82+EtOH!K84+EtOH!K86+EtOH!K93+EtOH!K95+EtOH!K97+EtOH!K103+EtOH!K105+EtOH!K107+EtOH!K109+EtOH!K112+EtOH!K113+EtOH!K99+EtOH!K101 -> 19.48669475
C73: Denaturant, g/MJ | D73: =(1-$D$65)*D72+$D$65*$D$66-D72 -> 1.017157106 | E73: =(1-$D$65)*E72+$D$65*$D$66-E72 -> 2.939887445 | F73: =(1-$D$65)*F72+$D$65*$D$66-F72 -> 1.38591202 | G73: =(1-$D$65)*G72+$D$65*$D$66-G72 -> 2.888495875 | I73: =(1-$D$65)*I72+$D$65*$D$66-I72 -> 2.954417963 | J73: =(1-$D$65)*J72+$D$65*$D$66-J72 -> 2.954417963 | K73: =(1-$D$65)*K72+$D$65*$D$66-K72 -> 2.954417963
C76: Loss Factor
C77: For Feedstock and Fuel | D77: 1.000504498

Sheet Fuel_Specs
A2: 1) Specifications of Fuels
B3: Heating Value | D3: Density | E3: C ratio | F3: S ratio | G3: S ratio
B4: LHV | C4: HHV | E4: (% by wt) | F4: (ppm by wt) | G4: Actual ratio by wt | H4: LHV/HHV | I4: Energy Density
A5: Liquid Fuels: | B5: BTU/gal | C5: BTU/gal | D5: grams/gal | I5: MJ/gal
A6: Gasoline blendstock | B6: 116090 | C6: 124340 | D6: 2819 | E6: 0.863 | I6: 122.4814336
A7: CARBOB | B7: 113300 | C7: 121351.7271 | D7: 2767 | E7: 0.859 | I7: 119.5378278
A8: Ethanol | B8: 76330 | C8: 84530 | D8: 2988 | E8: 0.522 | F8: 0 | G8: 0 | H8: 0.9029930202 | I8: 80.53241303
A9: Gaseous Fuels (at 60F and 1atm): | B9: BTU/ft3 | C9: BTU/ft3 | D9: grams/ft3 | H9: LHV/HHV | I9: MJ/unit
A10: Natural gas | B10: 930 | C10: 1030 | D10: 20.8 | E10: 0.724 | F10: 6 | G10: 6e-06 | H10: =B10/C10 -> 0.9029126214 | I10: 0.98
A11: Pure Methane | B11: 910 | C11: 1010 | D11: 19.2 | H11: =B11/C11 -> 0.900990099
A13: 2) Global Warming Potentials of Greenhouse Gases: relative to CO2
A14: CO2 | B14: 1
A15: CH4 | B15: 25
A16: N2O | B16: 298
A17: VOC | B17: 3.116666667
A18: CO | B18: 1.571428571
A19: NO2 | B19: 0
A22: 3) Unit Conversion
A23: Mass | B23: 1 g | C23: 1 kg | D23: 1 metric ton | E23: 1 lb | F23: 1 short ton
A24: g | B24: 1 | C24: 1000 | D24: 1000000 | E24: 453.59237 | F24: 907184.74
A25: kg | B25: 0.001 | C25: 1 | D25: 1000 | E25: 0.45359237 | F25: 907.18474
A26: metric ton | B26: 1e-06 | C26: 0.001 | D26: 1 | E26: 0.00045359237 | F26: 0.90718474
A27: lb | B27: 0.002204622622 | C27: 2.204622622 | D27: 2204.622622 | E27: 1 | F27: 2000
A28: short ton | B28: 1.102311311e-06 | C28: 0.001102311311 | D28: 1.102311311 | E28: 0.0005 | F28: 1
A30: Volume | B30: 1 m3 | C30: 1 ml | D30: 1 L | E30: 1 gal | F30: 1 ft3
A31: m3 | B31: 1 | C31: 1e-06 | D31: 0.001 | E31: 0.003785411 | F31: 0.028316847
A32: ml | B32: 1000000 | C32: 1 | D32: 1000 | E32: 3785.411 | F32: 28316.847
A33: L | B33: 1000 | C33: 0.001 | D33: 1 | E33: 3.785411 | F33: 28.316847
A34: gal | B34: 264.1721071 | C34: 0.0002641721071 | D34: 0.2641721071 | E34: 1 | F34: 7.480521138
A35: ft3 | B35: 35.31466621 | C35: 3.531466621e-05 | D35: 0.03531466621 | E35: 0.1336805259 | F35: 1
A37: Energy | B37: 1 J | C37: 1kJ | D37: 1 MJ | E37: 1Wh | F37: 1 kWh | G37: 1 BTU | H37: 1 mmBTU
A38: J | B38: 1 | C38: 1000 | D38: 1000000 | E38: 3600 | F38: 3600000 | G38: 1055.05585 | H38: 1055055850
A39: kJ | B39: 0.001 | C39: 1 | D39: 1000 | E39: 3.6 | F39: 3600 | G39: 1.05505585 | H39: 1055055.85
A40: MJ | B40: 1e-06 | C40: 0.001 | D40: 1 | E40: 0.0036 | F40: 3.6 | G40: 0.00105505585 | H40: 1055.05585
A41: Wh | B41: 0.0002777777778 | C41: 0.2777777778 | D41: 277.7777778 | E41: 1 | F41: 1000 | G41: 0.2930710694 | H41: 293071.0694
A42: kWh | B42: 2.777777778e-07 | C42: 0.0002777777778 | D42: 0.2777777778 | E42: 0.001 | F42: 1 | G42: 0.0002930710694 | H42: 293.0710694
A43: BTU | B43: 0.0009478171227 | C43: 0.9478171227 | D43: 947.8171227 | E43: 3.412141642 | F43: 3412.141642 | G43: 1 | H43: 1000000
A44: mmBTU | B44: 9.478171227e-10 | C44: 9.478171227e-07 | D44: 0.0009478171227 | E44: 3.412141642e-06 | F44: 0.003412141642 | G44: 1e-06 | H44: 1
A46: 4) Corn Bushel Weight
A47: 56 | B47: lb/wet bushel
A48: =A47*(1-15%) -> 47.6 | B48: lb/dry bushel

Sheet NG and Imported Steam
B1: MMBTU
A2: Reporting Month | B2: Total Natural Gas Billed | C2: Imported Steam | D2: Boiler Efficiency to Make Steam | E2: Total Natural Gas Usage (Field 3.2.)
B3: HHV | C3: HHV | D3: % | E3: HHV
A4: 2017-05-01 | B4: 174216.9375 | C4: 3020.85 | D4: 0.8 | E4: =B4+C4/D4 -> 177993
A5: 2017-06-01 | B5: 177153.6875 | C5: 580.25 | D5: 0.8 | E5: =B5+C5/D5 -> 177879
A6: 2017-07-01 | B6: 198249.65 | C6: 1309.08 | D6: 0.8 | E6: 199886
A7: 2017-08-01 | B7: 196076.8625 | C7: 3133.71 | D7: 0.8 | E7: 199994
A8: 2017-09-01 | B8: 199529.7625 | C8: 364.99 | D8: 0.8 | E8: 199986
A9: 2017-10-01 | B9: 199015.575 | C9: 840.34 | D9: 0.8 | E9: 200066
A10: 2017-11-01 | B10: 199207.85 | C10: 1492.92 | D10: 0.8 | E10: 201074
A11: 2017-12-01 | B11: 198546.1 | C11: 1702.32 | D11: 0.8 | E11: 200674
A12: 2018-01-01 | B12: 199724.6125 | C12: 119.51 | D12: 0.8 | E12: 199874
A13: 2018-02-01 | B13: 165760.225 | C13: 524.62 | D13: 0.8 | E13: 166416
A14: 2018-03-01 | B14: 166453.9375 | C14: 627.25 | D14: 0.8 | E14: 167238
A15: 2018-04-01 | B15: 179445.8375 | C15: 452.13 | D15: 0.8 | E15: 180011
A16: 2018-05-01 | B16: 183880.3875 | C16: 2755.69 | D16: 0.8 | E16: 187325
A17: 2018-06-01 | B17: 180235.6875 | C17: 681.05 | D17: 0.8 | E17: 181087
A18: 2018-07-01 | B18: 183584.975 | C18: 268.82 | D18: 0.8 | E18: 183921
A19: 2018-08-01 | B19: 134437.1875 | C19: 3093.45 | D19: 0.8 | E19: 138304
A20: 2018-09-01 | B20: 182239.0875 | C20: 324.73 | D20: 0.8 | E20: 182645
A21: 2018-10-01 | B21: 188661.9 | C21: 800.08 | D21: 0.8 | E21: 189662
A22: 2018-11-01 | B22: 188114.175 | C22: 1452.66 | D22: 0.8 | E22: 189930
A23: 2018-12-01 | B23: 183252.425 | C23: 1662.06 | D23: 0.8 | E23: 185330
A24: 2019-01-01 | B24: 199232.9375 | C24: 79.25 | D24: 0.8 | E24: 199332
A25: 2019-02-01 | B25: 181492.55 | C25: 484.36 | D25: 0.8 | E25: 182098
A26: 2019-03-01 | B26: 199622.2625 | C26: 586.99 | D26: 0.8 | E26: 200356
A27: 2019-04-01 | B27: 177372.1625 | C27: 411.87 | D27: 0.8 | E27: 177887
